Cogmind - Beta 11 @@@ ROGUE MODE // 2022.03.18 @ 18:37:52 Player: maxwell Result: Destroyed by D-53 Grenadier with Mini Grenade Launcher Performance ------------- Evolutions (0) 0 Regions Visited (2) 400 Robots Destroyed (18) 90 Value Destroyed (450) 450 Prototype IDs (2) 40 Alien Tech Used (0) 0 Bonus (0) 0 TOTAL SCORE: 980 Bonus ------- None Cogmind --------- Core Integrity 0/250 Matter 290/300 Energy 75/100 System Corruption 1% Temperature Cool (0) Movement Walking (190) Ox1 Location -10/Mines Parts ------- > --- POWER (1) -------- (None) > --- PROPULSION (2) --- Improved Aluminum Leg Improved Aluminum Leg > --- UTILITY (2) ------ Large Storage Unit Hardened Light Armor Plating > --- WEAPON (2) ------- Assault Rifle Assault Rifle > --- INVENTORY (15) --- Improved Ion Engine Light Treads Light Treads Light Treads Improved Aluminum Leg Improved Aluminum Leg Huge Storage Unit Structural Scanner Hardened Light Armor Plating Hardened Light Armor Plating Light Assault Rifle Grenade Launcher Grenade Launcher Grenade Launcher Mace Peak State ------------ > --- POWER ------------ Improved Ion Engine > --- PROPULSION ------- Improved Aluminum Leg Improved Aluminum Leg > --- UTILITY ---------- Large Storage Unit Hardened Light Armor Plating > --- WEAPON ----------- Assault Rifle Mace > --- INVENTORY -------- Improved Ion Engine Improved Aluminum Leg Improved Aluminum Leg Huge Storage Unit Structural Scanner Hardened Light Armor Plating Hardened Light Armor Plating Hardened Light Armor Plating Assault Rifle Light Assault Rifle Grenade Launcher Grenade Launcher Grenade Launcher Grenade Launcher [Rating: 14] Favorites ----------- Power Ion Engine Engine Ion Engine Propulsion Light Treads Treads Light Treads Leg Improved Aluminum Leg Utility Structural Scanner Device Structural Scanner Storage Large Storage Unit Protection Hardened Light Armor Plating Weapon Assault Rifle Ballistic Gun Assault Rifle Launcher Grenade Launcher Impact Weapon Mace Build | -11 -10 -10 ------- Run | Scr Mat Min Slots Evolved . | . . . Power . | . . . Propulsion . | . . . Utility . | . . . Weapon . | . . . Parts Attached 23 | 6 14 3 Power 3 | 1 2 . Engine 3 | 1 2 . Core . | . . . Reactor . | . . . Propulsion 4 | 2 2 . Treads 2 | 2 . . Leg 2 | . 2 . Wheel . | . . . Hover . | . . . Flight . | . . . Utility 8 | 1 6 1 Device 2 | . 2 . Storage 3 | 1 2 . Processor . | . . . Hackware . | . . . Protection 3 | . 2 1 Artifact . | . . . Weapon 8 | 2 4 2 Energy Gun . | . . . Energy Cannon . | . . . Ballistic Gun 5 | 2 2 1 Ballistic Cannon . | . . . Launcher 1 | . 1 . Special Weapon . | . . . Impact Weapon 2 | . 1 1 Slashing Weapon . | . . . Piercing Weapon . | . . . Special Melee Weapon . | . . . Unidentified Prototypes . | . . . Parts Lost 4 | . 2 2 Power 2 | . 1 1 Propulsion 1 | . 1 . Utility 1 | . . 1 Weapon . | . . . Highest Loss Streak 2 | . 2 1 To Critical Strikes . | . . . Average Slot Usage (%) 95 | . 94 98 Engine 14 | . 14 14 Treads 15 | . 23 . Leg 10 | . 1 28 Device 7 | . 10 . Storage 14 | . 14 14 Protection 5 | . 1 13 Ballistic Gun 19 | . 22 14 Launcher 2 | . 1 2 Impact Weapon 5 | . 3 10 Naked Turns . | . . . Heaviest Build 89 | 13 89 37 Greatest Support 40 | 40 40 26 Greatest Overweight (x) 4 | 4 4 1 Average Overweight (x) . | . . 1 Largest Inventory Capacity 25 | 8 25 15 Average Capacity 14 | 7 14 15 Most Carried 15 | 2 15 15 Average Carried 9 | 1 7 14 Final Capacity 15 | 8 15 15 Final Carried 15 | 2 14 15 Class Distribution -------------------- 100% | Mutant Dominant Class ---------------- Mutant | -10/Materials Mutant | -10/Mines Resources | -11 -10 -10 ----------- Run | Scr Mat Min Matter Collected 680 | 201 167 312 Remotely . | . . . Salvage Created 554 | . 407 147 Parts 38 | . 29 9 Haulers Intercepted . | . . . Recyclers Shooed 1 | . 1 . Parts Field Recycled . | . . . Retrieved Matter . | . . . Parts Self-Destructed . | . . . Prevented . | . . . Kills | -11 -10 -10 ------- Run | Scr Mat Min Combat Hostiles Destroyed 20 | . 11 9 Melee 1 | . . 1 Guns 11 | . 11 . AOE 7 | . . 7 Classes Destroyed 5 | . 3 2 Worker 2 | . 1 1 Swarmer 6 | . 3 3 Grunt 8 | . 8 . Sentry 2 | . . 2 Assembled 4 | . . 4 Best Kill Streak 7 | . 3 7 Combat Bots Only 7 | . 3 7 Max Kills in Single Turn 2 | . 1 2 Gunslinging . | . . . Exploded 2 | . . 2 Melee 1 | . . 1 Uniques/NPCs Destroyed . | . . . Combat | -11 -10 -10 -------- Run | Scr Mat Min Damage Taken 1163 | . 506 657 Core 272 | . 110 162 Absorbed by Shields . | . . . Core Remaining (%) 100 | 100 . . Volleys Fired 44 | . 36 8 Largest 2 | . 2 1 Hottest 40 | . 40 30 Shots Fired 79 | . 70 9 Gun 70 | . 69 1 Cannon . | . . . Launcher 9 | . 1 8 Special . | . . . Kinetic 70 | . 69 1 Thermal . | . . . Explosive 9 | . 1 8 Electromagnetic . | . . . Robot Hit Streak 8 | . 8 3 Robot Miss Streak 7 | . 7 1 Penetration Max . | . . . Secondary Targets 1 | . 1 . Max Gunslinging Chain 1 | . 1 . Shots Hit Robots 47 | . 37 10 Core Hits 33 | . 21 12 Critical Kills . | . . . Critical Parts Destroyed 1 | . . 1 Critical Strikes 1 | . . 1 Smash 1 | . . 1 Melee Attacks 5 | . 1 4 Impact 5 | . 1 4 Slashing . | . . . Piercing . | . . . Sneak Attacks 1 | . . 1 Combat Hostiles . | . . . Follow-up Attacks . | . . . Damage Inflicted 1164 | . 471 693 Guns 453 | . 453 . Cannons . | . . . Explosions 549 | . . 549 Melee 144 | . . 144 Ramming 18 | . 18 . Kinetic 453 | . 453 . Thermal . | . . . Explosive 549 | . . 549 Electromagnetic . | . . . Impact 144 | . . 144 Slashing . | . . . Piercing . | . . . Highest Corruption 1 | . 1 1 Average Corruption 1 | . 1 1 Corruption Purged . | . . . Corruption Blocked . | . . . Effects 18 | . 13 5 Message Errors 5 | . 3 2 Matter Fused 5 | . 4 1 Heat Flow Errors 2 | . 2 . Energy Discharges 2 | . 1 1 Data Loss (minor) 1 | . 1 . Data Loss (major) 1 | . 1 . Misfires 1 | . . 1 Alerts 1 | . 1 . Overload Shots . | . . . Overflow Damage 74 | . . 74 Projectiles . | . . . Explosions 12 | . . 12 Melee 62 | . . 62 Knockbacks 2 | . . 2 Impact 1 | . . 1 Kinetic . | . . . Secondary 1 | . . 1 Self-Inflicted Damage 185 | . 21 164 Shots 6 | . 1 5 Rammed 4 | . 4 . Targets Rammed 4 | . 4 . Kicked . | . . . Crushed . | . . . Highest Temperature 246 | . 246 12 Average Temperature 52 | . 68 5 Received Heat Transfer 252 | . 207 45 Siege Activations . | . . . Robots Corrupted . | . . . Combat Hostiles . | . . . Parts Fried 5 | . . 5 Impact Corruptions 4 | . . 4 Robots Melted . | . . . Combat Hostiles . | . . . Parts Melted . | . . . Heat Transferred . | . . . Parts Sabotaged . | . . . Parts Stolen . | . . . Parts Stripped . | . . . Power Chain Reactions . | . . . Missiles Intercepted . | . . . Alert | -11 -10 -10 ------- Run | Scr Mat Min Peak Influence 269 | . 148 269 Initial 1 | . . 1 Average 82 | . 58 139 Maximum Alert Level 1 | . . 1 Low Security (%) 86 | 100 100 59 Level 1 13 | . . 40 Level 2 . | . . . Level 3 . | . . . Level 4 . | . . . Level 5 . | . . . High Security . | . . . Max Security . | . . . Squads Dispatched 3 | . 3 . Investigation 1 | . 1 . Extermination . | . . . Reinforcement 2 | . 2 . Assault . | . . . Garrison . | . . . Intercept . | . . . Searches Triggered . | . . . Construction Impeded . | . . . Haulers Reinforced . | . . . Active Scanning Responses . | . . . Cargo Convoy Interrupts . | . . . Stealth | -11 -10 -10 --------- Run | Scr Mat Min Distress Signals 3 | . 2 1 Communications Jammed . | . . . Distress Signals . | . . . Times Spotted 32 | . 22 10 Peak Tracking Total 4 | . 4 4 Tactical Retreats 1 | . 1 . Traps | -11 -10 -10 ------- Run | Scr Mat Min Traps Triggered 1 | . 1 . Indirectly . | . . . Trap Hack Attempts . | . . . Triggered . | . . . Disarmed . | . . . Reprogrammed . | . . . Reused . | . . . Traps Extracted . | . . . Installed . | . . . Triggered . | . . . Machines | -11 -10 -10 ---------- Run | Scr Mat Min Machines Disabled . | . . . Max in Single Turn . | . . . Machines Sabotaged . | . . . Garrisons Compromised . | . . . Overloaded Fab Kills . | . . . Hacking | -11 -10 -10 --------- Run | Scr Mat Min Machines Accessed 7 | . 7 . Terminals 6 | . 6 . Fabricators . | . . . Repair Stations . | . . . Recycling Units 1 | . 1 . Scanalyzers . | . . . Garrison Access . | . . . Total Hacks 27 | . 27 . Successful 12 | . 12 . Failed 15 | . 15 . Catastrophic 1 | . 1 . Database Lockouts . | . . . Manual 23 | . 23 . Terminals 24 | . 24 . Fabricators . | . . . Repair Stations . | . . . Recycling Units 3 | . 3 . Scanalyzers . | . . . Garrison Access . | . . . Terminal Hacks 7 | . 7 . Part Schematic 1 | . 1 . Robot Analysis 3 | . 3 . Prototype ID Bank 1 | . 1 . Terminal Index 1 | . 1 . Locate Traps 1 | . 1 . Fabricator Hacks . | . . . Repair Station Hacks . | . . . Recycling Unit Hacks . | . . . Scanalyzer . | . . . Garrison Access Hacks . | . . . Unauthorized Hacks 5 | . 5 . Terminals 5 | . 5 . Track 1 | . 1 . Assimilate 1 | . 1 . Botnet 2 | . 2 . Operators 1 | . 1 . Fabricators . | . . . Repair Stations . | . . . Recycling Units . | . . . Scanalyzers . | . . . Garrison Access . | . . . Data Cores Recovered . | . . . Used . | . . . Hacking Detections 7 | . 7 . Full Trace Events 1 | . 1 . Feedback Events 1 | . 1 . Corruption 1 | . 1 . Feedback Blocked . | . . . Robot Schematics Acquired . | . . . Robots Built . | . . . Authchips . | . . . Time . | . . . Total Robot Build Rating . | . . . Part Schematics Acquired 1 | . 1 . Parts Built . | . . . Authchips . | . . . Time . | . . . Total Part Build Rating . | . . . Parts Repaired . | . . . Time . | . . . Parts Recycled . | . . . Recycled Matter . | . . . Retrieved Matter . | . . . Retrieved Components . | . . . Parts Scanalyzed . | . . . Part Schematics Acquired . | . . . Parts Damaged . | . . . Bothacking | -11 -10 -10 ------------ Run | Scr Mat Min Used RIF Installer . | . . . Robots Hacked . | . . . Non-combat . | . . . Combat . | . . . Robot Hacks Applied . | . . . Relay Couplers Released . | . . . Fabnet Peak Effective % . | . . . Robots Rewired . | . . . Allies Hacked . | . . . Hacks Repelled . | . . . Allies | -11 -10 -10 -------- Run | Scr Mat Min Total Allies 4 | . 1 3 Largest Group 3 | . 1 3 Highest-Rated Group 40 | . 10 40 Highest-Rated Ally 16 | . 10 16 Total Orders 2 | . 2 . STAY 1 | . 1 . FOLLOW 1 | . 1 . Ally Attacks . | . . . Total Damage . | . . . Kills . | . . . Allies Corrupted . | . . . Allies Melted . | . . . Intel | -11 -10 -10 ------- Run | Scr Mat Min Robot Analysis Total 3 | . 3 . Derelict Logs Recovered 1 | . . 1 Drone Launches . | . . . Drone Recoveries . | . . . Exploration | -11 -10 -10 ------------- Run | Scr Mat Min Turns Passed 2482 | 72 1608 802 Spaces Moved 1110 | 41 665 404 Core 9 | 9 . . Treads 662 | 32 630 . Legs 439 | . 35 404 Wheels . | . . . Hover . | . . . Flight . | . . . Fastest Speed 50 | 50 160 190 Average Speed 199 | 150 207 190 Slowest Speed 480 | 250 480 190 Overloaded Moves . | . . . Propulsion Burnouts . | . . . Robots Hopped . | . . . Cave-ins Triggered . | . . . Exploration Rate (%) 50 | 4 92 55 Regions Visited 2 Branch Regions 1 Pre-discovered Areas . | . . . Known Exits Taken . | . . . Unknown Exits Taken 2 | 1 1 . Scrap Searched . | . . . Spaces Dug 7 | . 7 . Terrain Destroyed 73 | . 7 66 Melee 1 | . 1 . Projectile . | . . . AOE 72 | . 6 66 Terrain Rammed . | . . . Walls Destroyed . | . . . Machines Disabled . | . . . Actions | -11 -10 -10 --------- Run | Scr Mat Min Total 1294 | 48 822 424 Wait 75 | . 75 . Move 1108 | 40 664 404 Hop . | . . . Pick Up 22 | 2 17 3 Fast Attach 11 | 6 5 . Attach 6 | . 4 2 Detach 4 | . 3 1 Swap 6 | . 5 1 Drop 9 | . 8 1 Fire 44 | . 36 8 Melee 5 | . 1 4 Ram . | . . . Kick . | . . . Crush 4 | . 4 . Escape Stasis . | . . . Rewire . | . . . Trap . | . . . Miscellaneous . | . . . Route ------- -11/Scrapyard -10/Materials (discovered 5 exits: [*Mat x3] / [*Min x2]) -10/Mines History --------- Turn | Location | Event 10 | -11/Scrapyard | Discovered new exit (range 16) 73 | -11/Scrapyard | Entered Materials 240 | -10/Materials | Discovered new exit (range 16) 306 | -10/Materials | Build established: Mutant 448 | -10/Materials | Discovered new exit (range 16) 586 | -10/Materials | Discovered new exit (range 4) 899 | -10/Materials | Discovered new exit (range 8) 916 | -10/Materials | Discovered new exit (range 15) 1681 | -10/Materials | Entered Mines 1682 | -10/Mines | Assembled infested the area 1687 | -10/Mines | Assisted by a Guerilla fighting off Assembled 1732 | -10/Mines | Core integrity fell below 50% 1777 | -10/Mines | Destroyed 7 combat bots 1905 | -10/Mines | Core integrity fell below 20% 2198 | -10/Mines | Assisted by bots powering up and referring to "LRC-V3" 2483 | -10/Mines | Destroyed by D-53 Grenadier with Mini Grenade Launcher Last Messages --------------- 02198_ Trooper 1b: "Hello LRC-V3. What is your command?" 02269_ ZVKH Z11WQLE8YV2XZL6J>R50NRFRQ7JVEU1 02334_ U-05 Engineer builds a Wall. 02338_ U-05 Engineer lays Concrete. 02341_ U-05 Engineer builds a Wall. 02342_ System corrupted: Energy discharge (-76). 02342_ U-05 Engineer lays Concrete. 02356_ Sneak attack on K-01 Serf. 02356_ Destroyed Med. Matter Pod. 02356_ Destroyed Wheel. 02356_ K-01 Serf system corrupted by crushing effect. 02356_ K-01 Serf knocked back. 02357_ K-01 Serf system terminally corrupted. 02357_ Wheel fried. 02357_ Lgt. Ion Engine fried. 02359_ Acquired 22 matter. 02395_ U-05 Engineer lays Concrete. 02406_ U-05 Engineer builds a Wall. 02481_ Imp. Ion Engine destroyed. 02481_ Mercenary 1a destroyed. Map ----- +----------------------------------------------------+ | #???## #???????????????# ########## ##### ## | | #????## ############????#=##?????### # #?# | | #?????# ## #????#!##?????## # # # # | | #?????# #???##!##?????# ##### # ### | | #?????# #######[##?????# ########?## | | #?????## ## #### #|##?????# #????????# | | ###??????# ##### ########!##?????## #????????# | | ########## ##???# | ==| ##??????# #????????## | | #????####### #####??????# #?????????# | | ##############??????# #%### #??????# #?????????? | | ????????????????????## ## # #??????# #?????????? | | ###?????????????????#### # #??????#%#?????????? | | ######???????????## ####???#### ###???????? | | #???????????# % =# ##???## ##??????? | | ### #???????????# %######?## #??????? | | ##?# #???????????# ##?## ## #??????? | | ##### #???????????# ##??# ##??????? | | # ######?????## %##??# ##???????? | | ## ### ## ####?##% ##?# #####????????? | | ?# ### ### ! | #?# ##????????????? | | ?# ## ##/ #?# " #?????????????? | | ## ### ## #### g#?## #?????????????? | | ###### #### rg##### ##?????????????? | | """ #??##### #####?? [% ## ##??????????????? | | """ #???######????# # #####???????????????? | | """ #???????????????# @ #???????????????????? | | #???????????# k ## #??????????????????? | | """ #???????????# %r ????????????????????? | | """ #???????????# # #???????????????????? | | """ #???????????# ####%% ??????????????????? | | #???????????# # ??####?????????????????? | | ######?????????? d ###??????????????????????????? | | ??????????????? k ?????????????????????????????? | | ??????????????# ###??????????????????????????????? | | ??????????????#??????????????????????????????????? | | ?????????????????????????????????????????????????? | | ?????????????????????????????????????????????????? | | ?????????????????????????????????????????????????? | | ?????????????????????????????????????????????????? | | ?????????????????????????????????????????????????? | | ?????????????????????????????????????????????????? | | ?????????????????????????????????????????????????? | | ?????????????????????????????????????????????????? | | ?????????????????????????????????????????????????? | | ?????????????????????????????????????????????????? | | ?????????????????????????????????????????????????? | | ?????????????????????????????????????????????????? | | ?????????????????????????????????????????????????? | | ?????????????????????????????????????????????????? | | ?????????????????????????????????????????????????? | +----------------------------------------------------+ Best States ------------- Heat Dissipation 25 Energy Generation 12 Energy Capacity 265 Matter Stores 300 Matter Capacity 300 Sight Range 16 Terrain Scan Density 10 Armor Coverage 150 Evasion (%) 40 Recoil Reduction 2 Item Schematics ----------------- Huge Storage Unit | -10/Materials | Hacked Robot Schematics ------------------ None Fabricated ------------ Nothing Alien Tech Used ----------------- None Achievements -------------- None Challenges ------------ None Game ------ Seed MetafiberFluxDrive Manual? 0 Play Time 00:09:16 Cumulative 203.6 hours Start 2022.03.18 @ 12:54:20 End 2022.03.18 @ 18:37:52 Sessions 3 Manual Loads 0 Difficulty Rogue Special Mode None Game No. 314 Rogue 292 Adventurer 4 Explorer 18 Win Type - Total 10 Types 8/0/0/2/0/0/0/0/0 Lore% 68 Gallery% 86 Achievement% 70 Wizard Run 0 Options --------- ASCII 0 Keyboard 1 Movement Numpad Keybinds 0 Fullscreen 1 Font 18/SmallcapsGlow Map View 76x50 Tactical HUD 1 Map Filters NONE Filters NONE Steam 1 RUN: 35d12078-1e95-4e4a-ba6c-6dad0109abed